fUST/lending_fUST_20250511
["ID","MTS","AMOUNT","RATE_DAILY","PERIOD"]
[360609224,1746901837643,-1652.93,8.219e-05,2]
[360609225,1746901837653,-552.74,8.219e-05,2]
[360609226,1746901837663,-2446.99,8.219e-05,2]
[360609227,1746901837673,-2254.31,8.219e-05,2]
[360609228,1746901837682,-2471.91,8.219e-05,2]
[360609229,1746901837691,-400.0,8.219e-05,2]
[360609230,1746901837700,-475.87,8.219e-05,2]
[360609231,1746901837710,-151.0,8.219e-05,2]
[360609232,1746901837719,-151.0,8.219e-05,2]
[360609233,1746901837730,-151.0,8.219e-05,2]
[360609234,1746901837739,-151.0,8.219e-05,2]
[360609235,1746901837749,-151.0,8.219e-05,2]
[360609236,1746901837758,-151.0,8.219e-05,2]
[360609237,1746901837768,-151.0,8.219e-05,2]
[360609238,1746901837777,-3151.88,8.219e-05,2]
[360609239,1746901837787,-564.82,8.219e-05,2]
[360609240,1746901837796,-5712.78,8.219e-05,2]
[360609241,1746901837805,-1570.52,8.219e-05,2]
[360609242,1746901837815,-554.62,8.219e-05,2]
[360609243,1746901837825,-400.0,8.219e-05,2]
[360609244,1746901837835,-2078.89,8.219e-05,2]
[360609245,1746901837844,-400.0,8.219e-05,2]
[360609246,1746901837854,-400.0,8.219e-05,2]
[360609247,1746901837863,-400.0,8.219e-05,2]
[360609248,1746901837873,-151.0,8.219e-05,2]
[360609249,1746901837884,-400.0,8.219e-05,2]
[360609250,1746901837893,-151.0,8.219e-05,2]
[360609251,1746901837902,-4952.47,8.219e-05,2]
[360609252,1746901837912,-1655.52,8.219e-05,2]
[360609253,1746901837922,-151.0,8.219e-05,2]
[360609254,1746901837931,-400.0,8.219e-05,2]
[360609255,1746901837940,-464.65,8.219e-05,2]
[360609256,1746901837950,-1026.85,8.219e-05,2]
[360609257,1746901837960,-400.0,8.219e-05,2]
[360609258,1746901837969,-400.0,8.219e-05,2]
[360609259,1746901837978,-634.63,8.219e-05,2]
[360609260,1746901837988,-474.99,8.219e-05,2]
[360609261,1746901837997,-874.79,8.219e-05,2]
[360609263,1746901838007,-151.0,8.219e-05,2]
[360609264,1746901838016,-151.0,8.219e-05,2]
[360609265,1746901838026,-151.0,8.219e-05,2]
[360609266,1746901838035,-400.0,8.219e-05,2]
[360609267,1746901838048,-151.0,8.219e-05,2]
[360609268,1746901838058,-151.0,8.219e-05,2]
[360609269,1746901838067,-151.0,8.219e-05,2]
[360609270,1746901838076,-151.0,8.219e-05,2]
[360609272,1746901838086,-151.0,8.219e-05,2]
[360609274,1746901838095,-151.0,8.219e-05,2]
[360609276,1746901838105,-400.0,8.219e-05,2]
[360609278,1746901838114,-400.0,8.219e-05,2]
[360609280,1746901838124,-151.0,8.219e-05,2]
[360609282,1746901838134,-151.0,8.219e-05,2]
[360609284,1746901838144,-151.0,8.219e-05,2]
[360609286,1746901838152,-151.0,8.219e-05,2]
[360609288,1746901838162,-202.2309,8.219e-05,2]
[360609290,1746901838172,-612.46,8.219e-05,2]
[360609292,1746901838181,-438.4,8.219e-05,2]
[360609294,1746901838191,-500.0,8.219e-05,2]
[360609296,1746901838200,-400.0,8.219e-05,2]
[360609298,1746901838209,-151.0,8.219e-05,2]
[360609299,1746901838218,-151.0,8.219e-05,2]
[360609301,1746901838227,-151.0,8.219e-05,2]
[360609303,1746901838236,-400.0,8.219e-05,2]
[360609305,1746901838245,-400.0,8.219e-05,2]
[360609307,1746901838255,-400.0,8.219e-05,2]
[360609309,1746901838264,-515.71,8.219e-05,2]
[360609312,1746901838273,-151.85770917,8.219e-05,2]
[360609313,1746901838283,-500.0,8.219e-05,2]
[360609315,1746901838292,-2489.24,8.219e-05,2]
[360609317,1746901838302,-1966.64254171,8.219e-05,2]
[360609319,1746901838311,-9889.3,8.219e-05,2]
[360609321,1746901838320,-500.0,8.219e-05,2]
[360609323,1746901838330,-151.0,8.219e-05,2]
[360609325,1746901838340,-400.0,8.219e-05,2]
[360609327,1746901838350,-400.0,8.219e-05,2]
[360609330,1746901838359,-1579.18,8.219e-05,2]
[360609332,1746901838369,-500.0,8.219e-05,2]
[360609334,1746901838379,-222.068534,8.219e-05,2]
[360609336,1746901838388,-222.068534,8.219e-05,2]
[360609337,1746901838397,-400.0,8.219e-05,2]
[360609339,1746901838407,-222.068534,8.219e-05,2]
[360609341,1746901838416,-222.068534,8.219e-05,2]
[360609344,1746901838427,-222.068534,8.219e-05,2]
[360609345,1746901838437,-222.068534,8.219e-05,2]
[360609347,1746901838446,-222.068534,8.219e-05,2]
[360609349,1746901838455,-222.068534,8.219e-05,2]
[360609351,1746901838465,-222.068534,8.219e-05,2]
[360609353,1746901838474,-400.0,8.219e-05,2]
[360609355,1746901838485,-222.068534,8.219e-05,2]
[360609357,1746901838494,-7975.43,8.219e-05,2]
[360609359,1746901838503,-400.0,8.219e-05,2]
[360609361,1746901838513,-222.068534,8.219e-05,2]
[360609363,1746901838522,-222.068534,8.219e-05,2]
[360609365,1746901838531,-222.068534,8.219e-05,2]
[360609367,1746901838542,-222.068534,8.219e-05,2]
[360609369,1746901838551,-222.068534,8.219e-05,2]
[360609371,1746901838561,-576.21,8.219e-05,2]
[360609373,1746901838570,-222.068534,8.219e-05,2]
[360609375,1746901838580,-222.068534,8.219e-05,2]
[360609377,1746901838590,-222.068534,8.219e-05,2]
[360609379,1746901838599,-222.068534,8.219e-05,2]
[360609381,1746901838608,-222.068534,8.219e-05,2]
[360609383,1746901838618,-400.0,8.219e-05,2]
[360609385,1746901838627,-900.42,8.219e-05,2]
[360609388,1746901838645,-408.94,8.219e-05,2]
[360609390,1746901838657,-400.0,8.219e-05,2]
[360609392,1746901838670,-415.37,8.219e-05,2]
[360609394,1746901838680,-400.0,8.219e-05,2]
[360609396,1746901838691,-763.19,8.219e-05,2]
[360609398,1746901838702,-400.0,8.219e-05,2]
[360609400,1746901838712,-400.0,8.219e-05,2]
[360609402,1746901838721,-2104.36,8.219e-05,2]
[360609404,1746901838731,-5121.08,8.219e-05,2]
[360609406,1746901838741,-400.0,8.219e-05,2]
[360609408,1746901838752,-1174.63,8.219e-05,2]
[360609410,1746901838762,-527.74,8.219e-05,2]
[360609413,1746901838773,-400.0,8.219e-05,2]
[360609414,1746901838783,-2607.41,8.219e-05,2]
[360609417,1746901838792,-952.66,8.219e-05,2]
[360609419,1746901838807,-105.11188557,8.219e-05,2]
[360609933,1746901843619,-500.0,8.102e-05,2]
[360609936,1746901843631,-179.62825109,8.102e-05,2]
[360609938,1746901843643,-500.0,8.102e-05,2]
[360609940,1746901843655,-227.3635611,8.102e-05,2]
[360609943,1746901843667,-500.0,8.102e-05,2]
[360609945,1746901843678,-1591.51737331,8.219e-05,2]
[360611648,1746902174976,3000.0,0.00022,120]
[360611652,1746902492701,9611.5751756,7.397e-05,2]
[360611653,1746902501738,801.91,0.00022,120]
[360613140,1746903032574,-300.0,8.092e-05,2]
[360613142,1746903032584,-475.73977576,8.093e-05,2]
[360613143,1746903032594,-500.0,8.093e-05,2]
[360613146,1746903032603,-482.21516612,8.093e-05,2]
[360613147,1746903032613,-500.0,8.093e-05,2]
[360613149,1746903032622,-500.0,8.093e-05,2]
[360613151,1746903032632,-500.0,8.093e-05,2]
[360613152,1746903032641,-500.0,8.093e-05,2]
[360613154,1746903032651,-342.93416526,8.093e-05,2]
[360613156,1746903032662,-500.0,8.093e-05,2]
[360613157,1746903032671,-423.40000343,8.093e-05,2]
[360613159,1746903032682,-500.0,8.093e-05,2]
[360613161,1746903032691,-300.0,8.093e-05,2]
[360613163,1746903032701,-500.0,8.093e-05,2]
[360613165,1746903032710,-5997.35009773,8.119e-05,2]
[360613166,1746903032720,-207.4,8.214e-05,2]
[360613168,1746903032729,-160.0,8.219e-05,2]
[360613170,1746903032738,-160.0,8.219e-05,2]
[360613171,1746903032748,-314.1579823,8.219e-05,2]
[360613173,1746903032757,-842.34118046,8.219e-05,2]
[360613175,1746903032766,-160.0,8.219e-05,2]
[360613177,1746903032775,-400.0,8.219e-05,2]
[360613179,1746903032785,-400.0,8.219e-05,2]
[360613181,1746903032794,-400.0,8.219e-05,2]
[360613182,1746903032803,-151.0,8.219e-05,2]
[360613184,1746903032813,-151.0,8.219e-05,2]
[360613186,1746903032822,-151.0,8.219e-05,2]
[360613188,1746903032831,-443.78,8.219e-05,2]
[360613189,1746903032841,-400.0,8.219e-05,2]
[360613191,1746903032850,-400.0,8.219e-05,2]
[360613193,1746903032860,-400.0,8.219e-05,2]
[360613195,1746903032870,-493.88,8.219e-05,2]
[360613197,1746903032879,-427.73183683,8.219e-05,2]
[360613198,1746903032889,-500.0,8.219e-05,2]
[360613200,1746903032897,-400.0,8.219e-05,2]
[360613202,1746903032907,-400.0,8.219e-05,2]
[360613204,1746903032917,-151.0,8.219e-05,2]
[360613206,1746903032927,-379.30562037,8.219e-05,2]
[360613207,1746903032938,-400.0,8.219e-05,2]
[360613209,1746903032947,-400.0,8.219e-05,2]
[360613211,1746903032957,-400.0,8.219e-05,2]
[360613213,1746903032966,-151.0,8.219e-05,2]
[360613215,1746903032976,-159.93580585,8.219e-05,2]
[360613216,1746903032985,-487.67480647,8.219e-05,2]
[360613219,1746903032995,-400.0,8.219e-05,2]
[360613220,1746903033006,-400.0,8.219e-05,2]
[360613223,1746903033016,-239.7683866,8.219e-05,2]
[360613225,1746903033026,-400.0,8.219e-05,2]
[360613227,1746903033036,-427.84136641,8.219e-05,2]
[360613228,1746903033045,-502.47113791,8.219e-05,2]
[360613230,1746903033056,-400.0,8.219e-05,2]
[360613232,1746903033066,-400.0,8.219e-05,2]
[360613234,1746903033076,-400.0,8.219e-05,2]
[360613236,1746903033087,-538.76,8.219e-05,2]
[360613238,1746903033097,-400.0,8.219e-05,2]
[360613240,1746903033107,-400.0,8.219e-05,2]
[360613242,1746903033117,-400.0,8.219e-05,2]
[360613245,1746903033128,-945.5,8.219e-05,2]
[360613247,1746903033138,-400.0,8.219e-05,2]
[360613249,1746903033148,-400.0,8.219e-05,2]
[360613250,1746903033160,-432.15,8.219e-05,2]
[360613253,1746903033170,-332.06418754,8.219e-05,2]
[360613255,1746903033180,-508.4992719,8.219e-05,2]
[360613257,1746903033190,-151.0,8.219e-05,2]
[360613259,1746903033200,-307.45936109,8.219e-05,2]
[360613261,1746903033210,-400.0,8.219e-05,2]
[360613262,1746903033220,-400.0,8.219e-05,2]
[360613265,1746903033230,-400.0,8.219e-05,2]
[360613266,1746903033241,-400.0,8.219e-05,2]
[360613269,1746903033251,-400.0,8.219e-05,2]
[360613271,1746903033263,-400.0,8.219e-05,2]
[360613273,1746903033273,-400.0,8.219e-05,2]
[360613274,1746903033284,-492.02292671,8.219e-05,2]
[360613277,1746903033293,-174.901,8.219e-05,2]
[360613280,1746903033305,-400.0,8.219e-05,2]
[360613284,1746903033315,-507.5904331,8.219e-05,2]
[360613287,1746903033326,-400.0,8.219e-05,2]
[360613288,1746903033337,-400.0,8.219e-05,2]
[360613290,1746903033346,-441.59,8.219e-05,2]
[360613292,1746903033357,-878.46,8.219e-05,2]
[360613294,1746903033367,-979.72,8.219e-05,2]
[360613296,1746903033377,-293.74122216,8.219e-05,2]
[360613298,1746903033387,-439.1590733,8.219e-05,2]
[360613301,1746903033406,-400.0,8.219e-05,2]
[360613303,1746903033417,-400.0,8.219e-05,2]
[360613304,1746903033426,-1171.17,8.219e-05,2]
[360613306,1746903033436,-400.0,8.219e-05,2]
[360613308,1746903033446,-400.0,8.219e-05,2]
[360613310,1746903033456,-400.0,8.219e-05,2]
[360613312,1746903033466,-400.0,8.219e-05,2]
[360613314,1746903033477,-400.0,8.219e-05,2]
[360613316,1746903033487,-609.46,8.219e-05,2]
[360613318,1746903033497,-400.0,8.219e-05,2]
[360613321,1746903033511,-400.0,8.219e-05,2]
[360613323,1746903033521,-400.0,8.219e-05,2]
[360613325,1746903033531,-400.0,8.219e-05,2]
[360613327,1746903033540,-400.0,8.219e-05,2]
[360613329,1746903033550,-400.0,8.219e-05,2]
[360613331,1746903033560,-400.0,8.219e-05,2]
[360613333,1746903033570,-762.09,8.219e-05,2]
[360613334,1746903033581,-400.0,8.219e-05,2]
[360613336,1746903033591,-720.73,8.219e-05,2]
[360613338,1746903033600,-400.0,8.219e-05,2]
[360613340,1746903033610,-400.0,8.219e-05,2]
[360613342,1746903033621,-625.9,8.219e-05,2]
[360613344,1746903033631,-507.63,8.219e-05,2]
[360613346,1746903033642,-400.0,8.219e-05,2]
[360613348,1746903033652,-809.53,8.219e-05,2]
[360613350,1746903033662,-400.0,8.219e-05,2]
[360613352,1746903033672,-400.0,8.219e-05,2]
[360613354,1746903033683,-400.0,8.219e-05,2]
[360613356,1746903033693,-407.46,8.219e-05,2]
[360613358,1746903033703,-400.0,8.219e-05,2]
[360613360,1746903033713,-400.0,8.219e-05,2]
[360613362,1746903033723,-616.44,8.219e-05,2]
[360613364,1746903033733,-400.0,8.219e-05,2]
[360613366,1746903033742,-1758.99,8.219e-05,2]
[360613368,1746903033753,-406.73002657,8.219e-05,2]
[360613369,1746903033763,-400.0,8.219e-05,2]
[360613370,1746903033773,-400.0,8.219e-05,2]
[360613371,1746903033783,-793.75,8.219e-05,2]
[360613372,1746903033792,-400.0,8.219e-05,2]
[360613373,1746903033802,-1181.28,8.219e-05,2]
[360613374,1746903033811,-400.0,8.219e-05,2]
[360613375,1746903033821,-420.38,8.219e-05,2]
[360613376,1746903033831,-828.52,8.219e-05,2]
[360613377,1746903033841,-668.88,8.219e-05,2]
[360613378,1746903033850,-400.0,8.219e-05,2]
[360613379,1746903033861,-400.0,8.219e-05,2]
[360613380,1746903033871,-421.58,8.219e-05,2]
[360613381,1746903033881,-400.0,8.219e-05,2]
[360613382,1746903033891,-400.0,8.219e-05,2]
[360613383,1746903033901,-151.0,8.219e-05,2]
[360613384,1746903033912,-2501.82,8.219e-05,2]
[360613385,1746903033923,-400.0,8.219e-05,2]
[360613386,1746903033932,-667.57,8.219e-05,2]
[360613387,1746903033942,-1056.45,8.219e-05,2]
[360613388,1746903033952,-400.0,8.219e-05,2]
[360613389,1746903033962,-400.0,8.219e-05,2]
[360613390,1746903033971,-400.0,8.219e-05,2]
[360613391,1746903033981,-433.24,8.219e-05,2]
[360613392,1746903033991,-1219.81,8.219e-05,2]
[360613393,1746903034000,-454.74,8.219e-05,2]
[360613394,1746903034010,-400.0,8.219e-05,2]
[360613395,1746903034020,-151.0,8.219e-05,2]
[360613396,1746903034029,-151.0,8.219e-05,2]
[360613397,1746903034039,-151.0,8.219e-05,2]
[360613398,1746903034048,-151.0,8.219e-05,2]
[360613399,1746903034058,-400.0,8.219e-05,2]
[360613400,1746903034067,-895.51,8.219e-05,2]
[360613401,1746903034078,-643.53,8.219e-05,2]
[360613402,1746903034088,-581.85,8.219e-05,2]
[360613403,1746903034098,-400.0,8.219e-05,2]
[360613404,1746903034108,-540.37,8.219e-05,2]
[360613405,1746903034118,-400.0,8.219e-05,2]
[360613406,1746903034128,-400.0,8.219e-05,2]
[360613407,1746903034138,-400.0,8.219e-05,2]
[360613408,1746903034147,-400.0,8.219e-05,2]
[360613409,1746903034159,-400.0,8.219e-05,2]
[360613410,1746903034169,-2217.46,8.219e-05,2]
[360613412,1746903034179,-891.54,8.219e-05,2]
[360613413,1746903034188,-968.77,8.219e-05,2]
[360613415,1746903034198,-2165.13,8.219e-05,2]
[360613417,1746903034208,-400.0,8.219e-05,2]
[360613419,1746903034218,-400.0,8.219e-05,2]
[360613421,1746903034228,-400.0,8.219e-05,2]
[360613423,1746903034238,-456.04,8.219e-05,2]
[360613425,1746903034248,-400.0,8.219e-05,2]
[360613427,1746903034257,-985.36,8.219e-05,2]
[360613429,1746903034268,-416.3,8.219e-05,2]
[360613431,1746903034278,-481.0,8.219e-05,2]
[360613433,1746903034288,-972.31,8.219e-05,2]
[360613435,1746903034298,-400.0,8.219e-05,2]
[360613437,1746903034308,-400.0,8.219e-05,2]
[360613439,1746903034318,-400.0,8.219e-05,2]
[360613441,1746903034328,-400.0,8.219e-05,2]
[360613443,1746903034338,-499.46,8.219e-05,2]
[360613445,1746903034348,-392.30545693,8.219e-05,2]
[360613447,1746903034357,-400.0,8.219e-05,2]
[360613449,1746903034367,-400.0,8.219e-05,2]
[360613451,1746903034377,-858.61,8.219e-05,2]
[360613454,1746903034388,-400.0,8.219e-05,2]
[360613455,1746903034399,-799.32,8.219e-05,2]
[360613458,1746903034410,-586.94,8.219e-05,2]
[360613460,1746903034420,-400.0,8.219e-05,2]
[360613462,1746903034431,-400.0,8.219e-05,2]
[360613464,1746903034440,-1438.59,8.219e-05,2]
[360613466,1746903034451,-1363.49,8.219e-05,2]
[360613467,1746903034461,-400.0,8.219e-05,2]
[360613469,1746903034470,-1415.63,8.219e-05,2]
[360613471,1746903034482,-400.0,8.219e-05,2]
[360613473,1746903034492,-400.0,8.219e-05,2]
[360613476,1746903034502,-400.0,8.219e-05,2]
[360613477,1746903034511,-411.61426084,8.219e-05,2]
[360613479,1746903034522,-1530.83,8.219e-05,2]
[360613482,1746903034532,-400.0,8.219e-05,2]
[360613484,1746903034542,-400.0,8.219e-05,2]
[360613486,1746903034552,-1101.45,8.219e-05,2]
[360613488,1746903034562,-407.46,8.219e-05,2]
[360613490,1746903034571,-400.0,8.219e-05,2]
[360613492,1746903034581,-400.0,8.219e-05,2]
[360613494,1746903034591,-634.69,8.219e-05,2]
[360613496,1746903034600,-400.0,8.219e-05,2]
[360613498,1746903034610,-731.39,8.219e-05,2]
[360613500,1746903034620,-400.0,8.219e-05,2]
[360613502,1746903034629,-5189.08,8.219e-05,2]
[360613504,1746903034639,-400.0,8.219e-05,2]
[360613506,1746903034648,-400.0,8.219e-05,2]
[360613508,1746903034658,-400.0,8.219e-05,2]
[360613510,1746903034667,-400.0,8.219e-05,2]
[360613512,1746903034677,-352.80514386,8.219e-05,2]
[360613514,1746903034687,-400.0,8.219e-05,2]
[360613515,1746903034696,-400.0,8.219e-05,2]
[360613517,1746903034705,-2236.25,8.219e-05,2]
[360613519,1746903034715,-400.0,8.219e-05,2]
[360613521,1746903034725,-400.0,8.219e-05,2]
[360613523,1746903034735,-423.22,8.219e-05,2]
[360613525,1746903034744,-400.0,8.219e-05,2]
[360613528,1746903034754,-400.0,8.219e-05,2]
[360613530,1746903034764,-400.0,8.219e-05,2]
[360613532,1746903034774,-400.0,8.219e-05,2]
[360613534,1746903034783,-691.36,8.219e-05,2]
[360613536,1746903034794,-649.02,8.219e-05,2]
[360613537,1746903034803,-535.45,8.219e-05,2]
[360613539,1746903034813,-1119.29,8.219e-05,2]
[360613541,1746903034822,-1103.47,8.219e-05,2]
[360613543,1746903034831,-400.0,8.219e-05,2]
[360613545,1746903034842,-785.5,8.219e-05,2]
[360613547,1746903034851,-400.0,8.219e-05,2]
[360613549,1746903034860,-400.0,8.219e-05,2]
[360613551,1746903034870,-1142.04,8.219e-05,2]
[360613553,1746903034879,-831.83,8.219e-05,2]
[360613555,1746903034888,-400.0,8.219e-05,2]
[360613557,1746903034898,-400.0,8.219e-05,2]
[360613559,1746903034907,-520.36,8.219e-05,2]
[360613561,1746903034918,-433.3,8.219e-05,2]
[360613563,1746903034927,-400.0,8.219e-05,2]
[360613564,1746903034938,-400.0,8.219e-05,2]
[360613565,1746903034948,-1123.55,8.219e-05,2]
[360613566,1746903034958,-400.0,8.219e-05,2]
[360613567,1746903034967,-839.07,8.219e-05,2]
[360613568,1746903034977,-730.64,8.219e-05,2]
[360613569,1746903034987,-1758.16,8.219e-05,2]
[360613570,1746903034996,-400.0,8.219e-05,2]
[360613571,1746903035006,-1029.38,8.219e-05,2]
[360613572,1746903035016,-400.0,8.219e-05,2]
[360613573,1746903035025,-400.0,8.219e-05,2]
[360613574,1746903035035,-400.0,8.219e-05,2]
[360613575,1746903035044,-1015.43,8.219e-05,2]
[360613576,1746903035053,-400.0,8.219e-05,2]
[360613577,1746903035063,-2305.56,8.219e-05,2]
[360613578,1746903035072,-500.0,8.219e-05,2]
[360613580,1746903035082,-400.0,8.219e-05,2]
[360613582,1746903035091,-151.0,8.219e-05,2]
[360613584,1746903035102,-1107.17,8.219e-05,2]
[360613586,1746903035111,-500.0,8.219e-05,2]
[360613588,1746903035121,-500.0,8.219e-05,2]
[360613590,1746903035130,-460.84,8.219e-05,2]
[360613592,1746903035140,-2538.36,8.219e-05,2]
[360613594,1746903035150,-400.0,8.219e-05,2]
[360613596,1746903035160,-1584.06,8.219e-05,2]
[360613598,1746903035170,-891.85,8.219e-05,2]
[360613600,1746903035179,-400.0,8.219e-05,2]
[360613602,1746903035189,-1023.53,8.219e-05,2]
[360613604,1746903035199,-400.0,8.219e-05,2]
[360613606,1746903035209,-400.0,8.219e-05,2]
[360613608,1746903035218,-400.0,8.219e-05,2]
[360613610,1746903035227,-518.47790772,8.219e-05,2]
[360613612,1746903035237,-400.0,8.219e-05,2]
[360613614,1746903035246,-1107.98,8.219e-05,2]
[360613615,1746903035256,-400.0,8.219e-05,2]
[360613616,1746903035265,-400.0,8.219e-05,2]
[360613617,1746903035275,-400.0,8.219e-05,2]
[360613619,1746903035284,-575.18,8.219e-05,2]
[360613621,1746903035293,-400.0,8.219e-05,2]
[360613623,1746903035302,-400.0,8.219e-05,2]
[360613625,1746903035312,-1444.0,8.219e-05,2]
[360613627,1746903035320,-8771.73,8.219e-05,2]
[360613629,1746903035330,-151.0,8.219e-05,2]
[360613631,1746903035340,-436.51690179,8.219e-05,2]
[360613633,1746903035349,-400.0,8.219e-05,2]
[360613636,1746903035359,-3115.25,8.219e-05,2]
[360613637,1746903035369,-400.0,8.219e-05,2]
[360613640,1746903035379,-990.02,8.219e-05,2]
[360613642,1746903035388,-878.02,8.219e-05,2]
[360613643,1746903035397,-4326.72,8.219e-05,2]
[360613645,1746903035408,-400.0,8.219e-05,2]
[360613647,1746903035418,-2345.03,8.219e-05,2]
[360613649,1746903035427,-2485.34,8.219e-05,2]
[360613651,1746903035437,-833.08,8.219e-05,2]
[360613659,1746903035638,-786.11,8.219e-05,2]
[360613660,1746903035650,-3685.06,8.219e-05,2]
[360613661,1746903035660,-2845.74,8.219e-05,2]
[360613662,1746903035670,-541.28,8.219e-05,2]
[360613663,1746903035680,-400.0,8.219e-05,2]
[360613664,1746903035690,-1202.69,8.219e-05,2]
[360613665,1746903035699,-1987.31,8.219e-05,2]
[360613666,1746903035709,-500.0,8.219e-05,2]
[360613667,1746903035718,-400.0,8.219e-05,2]
[360613668,1746903035727,-500.0,8.219e-05,2]
[360613669,1746903035737,-404.04903512,8.219e-05,2]
[360613670,1746903035746,-400.0,8.219e-05,2]
[360613671,1746903035755,-500.0,8.219e-05,2]
[360613672,1746903035765,-400.0,8.219e-05,2]
[360613673,1746903035774,-400.0,8.219e-05,2]
[360613674,1746903035784,-400.0,8.219e-05,2]
[360613675,1746903035794,-400.0,8.219e-05,2]
[360613676,1746903035804,-151.0,8.219e-05,2]
[360613677,1746903035815,-515.02,8.219e-05,2]
[360613678,1746903035824,-1354.33,8.219e-05,2]
[360613679,1746903035835,-984.06,8.219e-05,2]
[360613680,1746903035845,-1620.68,8.219e-05,2]
[360613681,1746903035857,-151.0,8.219e-05,2]
[360613682,1746903035867,-500.0,8.219e-05,2]
[360613683,1746903035878,-400.0,8.219e-05,2]
[360613684,1746903035888,-400.0,8.219e-05,2]
[360613685,1746903035898,-452.93,8.219e-05,2]
[360613686,1746903035908,-500.0,8.219e-05,2]
[360613687,1746903035918,-400.0,8.219e-05,2]
[360613688,1746903035928,-203.22449917,8.219e-05,2]
[360613689,1746903035937,-937.87,8.219e-05,2]
[360613690,1746903035946,-759.5,8.219e-05,2]
[360613691,1746903035955,-151.0,8.219e-05,2]
[360613692,1746903035965,-420.13,8.219e-05,2]
[360613693,1746903035974,-494.43,8.219e-05,2]
[360613694,1746903035984,-400.0,8.219e-05,2]
[360613695,1746903035994,-400.0,8.219e-05,2]
[360613696,1746903036003,-500.0,8.219e-05,2]
[360613697,1746903036012,-1807.59,8.219e-05,2]
[360613698,1746903036022,-2385.53,8.219e-05,2]
[360613699,1746903036031,-500.0,8.219e-05,2]
[360613700,1746903036040,-151.0,8.219e-05,2]
[360613701,1746903036050,-400.0,8.219e-05,2]
[360613702,1746903036059,-1941.81,8.219e-05,2]
[360613703,1746903036069,-500.0,8.219e-05,2]
[360613704,1746903036078,-400.0,8.219e-05,2]
[360613705,1746903036088,-455.2,8.219e-05,2]
[360613706,1746903036098,-400.0,8.219e-05,2]
[360613707,1746903036108,-1810.49,8.219e-05,2]
[360613708,1746903036117,-1092.96,8.219e-05,2]
[360613709,1746903036127,-636.7,8.219e-05,2]
[360613710,1746903036136,-317.20836022,8.219e-05,2]
[360613711,1746903036145,-400.0,8.219e-05,2]
[360613712,1746903036155,-3020.55,8.219e-05,2]
[360613713,1746903036165,-400.0,8.219e-05,2]
[360613714,1746903036175,-862.9,8.219e-05,2]
[360613715,1746903036184,-500.0,8.219e-05,2]
[360613716,1746903036194,-500.0,8.219e-05,2]
[360613717,1746903036202,-599.62,8.219e-05,2]
[360613718,1746903036212,-400.0,8.219e-05,2]
[360613719,1746903036222,-531.51,8.219e-05,2]
[360613720,1746903036231,-151.0,8.219e-05,2]
[360613721,1746903036241,-589.11,8.219e-05,2]
[360613722,1746903036250,-4746.12,8.219e-05,2]
[360613723,1746903036260,-500.0,8.219e-05,2]
[360613724,1746903036270,-187.96225822,8.219e-05,2]
[360613725,1746903036280,-505.75,8.219e-05,2]
[360613726,1746903036290,-151.0,8.219e-05,2]
[360613727,1746903036299,-400.0,8.219e-05,2]
[360613728,1746903036308,-400.0,8.219e-05,2]
[360613729,1746903036318,-529.71,8.219e-05,2]
[360613730,1746903036328,-2072.8,8.219e-05,2]
[360613731,1746903036338,-2160.38,8.219e-05,2]
[360613732,1746903036347,-400.0,8.219e-05,2]
[360613733,1746903036356,-608.19,8.219e-05,2]
[360613734,1746903036366,-400.0,8.219e-05,2]
[360613735,1746903036375,-404.58,8.219e-05,2]
[360613736,1746903036384,-400.0,8.219e-05,2]
[360613737,1746903036394,-1484.05,8.219e-05,2]
[360613738,1746903036406,-400.0,8.219e-05,2]
[360613739,1746903036418,-5474.75,8.219e-05,2]